Cogmind - Beta 17 @@@ ROGUE MODE // 2026.08.20 @ 14:03:54 Player: TheSkyeDoctor Result: Destroyed by D-53 Grenadier with Mini Grenade Launcher Performance ------------- Evolutions (0) 0 Regions Visited (2) 400 Robots Destroyed (8) 40 Value Destroyed (64) 64 Prototype IDs (0) 0 Alien Tech Used (0) 0 Bonus (0) 0 TOTAL SCORE: 504 Bonus ------- None Cogmind --------- Core Integrity 0/250 Matter 257/300 Energy 72/100 System Corruption 14% Temperature Cool (0) Movement Treading (160) Location -10/Mines Parts ------- > --- POWER (1) -------- (None) > --- PROPULSION (2) --- Light Treads Light Treads > --- UTILITY (2) ------ Large Storage Unit > --- WEAPON (2) ------- (None) > --- INVENTORY (15) --- Light Ion Engine High-capacity Matter Pod (130) Improved Terrain Scanner Ripper Peak State ------------ > --- POWER ------------ Light Ion Engine > --- PROPULSION ------- Light Treads Wheel > --- UTILITY ---------- Small Storage Unit Seismic Detector > --- WEAPON ----------- Medium Laser Medium Laser > --- INVENTORY -------- Light Ion Engine Light Treads Wheel Improved Terrain Scanner [Rating: 7] Favorites ----------- Power Light Ion Engine Engine Light Ion Engine Propulsion Wheel Treads Light Treads Wheel Wheel Utility Seismic Detector Device Seismic Detector Storage Large Storage Unit Weapon Medium Laser Energy Gun Medium Laser Launcher Grenade Launcher Build | -11 -10 -10 ------- Run | Yrd Mat Min Slots Evolved . | . . . Power . | . . . Propulsion . | . . . Utility . | . . . Weapon . | . . . Parts Attached 11 | 8 1 2 Power 1 | 1 . . Engine 1 | 1 . . Core . | . . . Reactor . | . . . Propulsion 4 | 3 . 1 Treads 2 | 2 . . Leg . | . . . Wheel 2 | 1 . 1 Hover . | . . . Flight . | . . . Utility 3 | 2 1 . Device 1 | 1 . . Storage 2 | 1 1 . Processor . | . . . Hackware . | . . . Protection . | . . . Artifact . | . . . Weapon 3 | 2 . 1 Energy Gun 2 | 2 . . Energy Cannon . | . . . Ballistic Gun . | . . . Ballistic Cannon . | . . . Launcher 1 | . . 1 Special Weapon . | . . . Impact Weapon . | . . . Slashing Weapon . | . . . Piercing Weapon . | . . . Special Melee Weapon . | . . . Unidentified Prototypes . | . . . Parts Lost 7 | . . 7 Power 1 | . . 1 Propulsion 2 | . . 2 Utility 1 | . . 1 Weapon 3 | . . 3 Highest Loss Streak 4 | . . 4 To Critical Strikes . | . . . Average Backups 4 | 2 5 5 Power . | . 1 1 Propulsion 1 | 1 2 2 Utility 1 | . 1 2 Weapon . | . . . Tool/Special . | . . . Unused Backups 4 | . . 4 Power 1 | . . 1 Propulsion . | . . . Utility 2 | . . 2 Weapon 1 | . . 1 Tool/Special . | . . . Average Slot Usage (%) 85 | . 100 73 Engine 13 | . 14 13 Treads 9 | . 14 5 Wheel 14 | . 14 14 Device 10 | . 14 7 Storage 14 | . 14 14 Energy Gun 20 | . 28 13 Launcher 2 | . . 4 Peak Build Rating 7 | 7 7 7 Average Rating 5 | 5 7 5 On Entrance 4 | . 7 7 Avg Prop Armor Cover (%) 13 | 15 13 13 Naked Turns . | . . . Heaviest Build 28 | 13 28 28 Greatest Support 40 | 40 10 40 Greatest Overweight (x) 2 | 1 2 2 Average Overweight (x) 1 | . 1 1 Largest Inventory Capacity 15 | 8 15 15 Average Capacity 11 | 7 9 15 Most Carried 7 | 4 7 6 Average Carried 4 | 2 5 5 Final Capacity 15 | 8 15 15 Final Carried 6 | 4 6 4 Class Distribution -------------------- 100% | Mutant Dominant Class ---------------- Mutant | -10/Materials Mutant | -10/Mines Resources | -11 -10 -10 ----------- Run | Yrd Mat Min Matter Collected 450 | 280 14 156 Remotely . | . . . Salvage Created 227 | 164 48 15 Parts 21 | 16 5 . Haulers Intercepted . | . . . Recyclers Shooed . | . . . Parts Field Recycled . | . . . Retrieved Matter . | . . . Parts Self-Destructed . | . . . Prevented . | . . . Parts Restored . | . . . Kills | -11 -10 -10 ------- Run | Yrd Mat Min Combat Hostiles Destroyed 6 | . 3 3 Guns 3 | . 3 . AOE 3 | . . 3 Classes Destroyed 4 | 2 1 1 Tunneler 4 | 4 . . Recycler 1 | 1 . . Swarmer 3 | . 3 . Assembled 3 | . . 3 Best Kill Streak 4 | 4 3 3 Combat Bots Only 3 | . 3 3 Max Kills in Single Turn 2 | 1 1 2 Gunslinging . | . . . Exploded 2 | . . 2 Melee . | . . . Uniques/NPCs Destroyed . | . . . Combat | -11 -10 -10 -------- Run | Yrd Mat Min Hostile Shots Fired 47 | . 14 33 Missed 10 | . 4 6 Hits 37 | . 10 27 Melee 10 | . . 10 Projectile 27 | . 10 17 AOE 7 | . . 7 Damage Taken 769 | . 85 684 Core 267 | . 15 252 Absorbed by Shields . | . . . Core Remaining (%) 100 | 100 . . Volleys Fired 35 | 11 8 16 Largest 2 | 2 2 1 Hottest 100 | 100 100 50 Shots Fired 54 | 22 16 16 Gun 49 | 22 16 11 Cannon . | . . . Launcher 5 | . . 5 Special . | . . . Kinetic . | . . . Thermal 49 | 22 16 11 Explosive 5 | . . 5 Electromagnetic . | . . . Robot Hit Streak 7 | 7 3 6 Robot Miss Streak 3 | 2 3 2 Penetration Max . | . . . Secondary Targets 1 | . 1 . Max Gunslinging Chain 1 | . 1 . Shots Hit Robots 28 | 10 7 11 Core Hits 19 | 6 3 10 Critical Kills . | . . . Critical Parts Destroyed . | . . . Critical Strikes 1 | . . 1 Burn 1 | . . 1 Melee Attacks . | . . . Impact . | . . . Slashing . | . . . Piercing . | . . . Sneak Attacks . | . . . Combat Hostiles . | . . . Follow-up Attacks . | . . . Damage Inflicted 428 | 137 89 202 Guns 301 | 137 89 75 Cannons . | . . . Explosions 127 | . . 127 Melee . | . . . Ramming . | . . . Kinetic . | . . . Thermal 301 | 137 89 75 Explosive 127 | . . 127 Electromagnetic . | . . . Impact . | . . . Slashing . | . . . Piercing . | . . . Highest Corruption 14 | . . 14 Average Corruption 11 | . . 11 Corruption Purged . | . . . Corruption Blocked . | . . . Effects 4 | . . 4 Matter Fused 2 | . . 2 Energy Discharges 1 | . . 1 Alerts 1 | . . 1 Overload Shots . | . . . Overflow Damage . | . . . Projectiles . | . . . Explosions . | . . . Melee . | . . . Knockbacks . | . . . Impact . | . . . Kinetic . | . . . Secondary . | . . . Self-Inflicted Damage 41 | . . 41 Shots 3 | . . 3 Rammed . | . . . Targets Rammed . | . . . Kicked . | . . . Crushed . | . . . Highest Temperature 193 | 156 193 120 Average Temperature 69 | 59 85 65 Received Heat Transfer 40 | . . 40 Siege Activations . | . . . Martial Activations . | . . . Shielding Activations . | . . . Robots Disrupted . | . . . Combat Hostiles . | . . . Robots Corrupted . | . . . Combat Hostiles . | . . . Parts Fried . | . . . Impact Corruptions . | . . . Robots Melted . | . . . Combat Hostiles . | . . . Parts Melted 1 | 1 . . Heat Transferred 962 | 407 259 296 Parts Sabotaged . | . . . Parts Stolen . | . . . Parts Stripped . | . . . Power Chain Reactions . | . . . Alert | -11 -10 -10 ------- Run | Yrd Mat Min Maximum Alert Level . | . . . Low Security (%) 100 | 100 100 100 Level 1 . | . . . Level 2 . | . . . Level 3 . | . . . Level 4 . | . . . Level 5 . | . . . High Security . | . . . Max Security . | . . . Peak Influence 105 | 10 105 25 Initial 25 | . . 25 Average 14 | 2 35 5 Influence Increases 173 | 25 121 27 Destroy 0b10 Robot/C 60 | . 60 . Destroy 0b10 Robot/NC 25 | 25 . . Destroy Leader 10 | . 10 . Successful Hack 6 | . 6 . Destroy Structure 27 | . . 27 Lose Combat Pursuer 45 | . 45 . Influence Decreases 173 | 25 56 92 Entered New Map 40 | . . 40 Time Decay 129 | 25 56 48 Lost Part 4 | . . 4 Squads Dispatched . | . . . Investigation . | . . . Extermination . | . . . Reinforcement . | . . . Assault . | . . . Garrison . | . . . Intercept . | . . . Searches Triggered . | . . . Construction Impeded . | . . . Haulers Reinforced . | . . . Active Scanning Responses . | . . . Cargo Convoy Interrupts . | . . . Stealth | -11 -10 -10 --------- Run | Yrd Mat Min Distress Signals 1 | . 1 . Communications Jammed . | . . . Distress Signals . | . . . Times Spotted 13 | . 5 8 Peak Tracking Total 6 | . 6 4 Tactical Retreats 3 | . 1 2 Traps | -11 -10 -10 ------- Run | Yrd Mat Min Traps Triggered . | . . . Indirectly . | . . . Trap Hack Attempts . | . . . Triggered . | . . . Disarmed . | . . . Reprogrammed . | . . . Reused . | . . . Traps Extracted . | . . . Installed . | . . . Triggered . | . . . Machines | -11 -10 -10 ---------- Run | Yrd Mat Min Machines Disabled . | . . . Max in Single Turn . | . . . Machines Repaired . | . . . Machines Dismantled . | . . . Machines Sabotaged . | . . . Overloaded Fab Kills . | . . . Hacking | -11 -10 -10 --------- Run | Yrd Mat Min Machines Accessed 1 | . 1 . Terminals 1 | . 1 . Fabricators . | . . . Repair Stations . | . . . Recycling Units . | . . . Scanalyzers . | . . . Garrison Access . | . . . Total Hacks 2 | . 2 . Successful 1 | . 1 . Failed 1 | . 1 . Catastrophic 1 | . 1 . Database Lockouts . | . . . Manual 2 | . 2 . Terminals 2 | . 2 . Fabricators . | . . . Repair Stations . | . . . Recycling Units . | . . . Scanalyzers . | . . . Garrison Access . | . . . Terminal Hacks . | . . . Fabricator Hacks . | . . . Repair Station Hacks . | . . . Recycling Unit Hacks . | . . . Scanalyzer . | . . . Garrison Access Hacks . | . . . Unauthorized Hacks 1 | . 1 . Terminals 1 | . 1 . Assimilate 1 | . 1 . Fabricators . | . . . Repair Stations . | . . . Recycling Units . | . . . Scanalyzers . | . . . Garrison Access . | . . . Data Cores Recovered . | . . . Used . | . . . Hacking Detections 1 | . 1 . Full Trace Events 1 | . 1 . Feedback Events . | . . . Feedback Blocked . | . . . Robot Schematics Acquired . | . . . Robots Built . | . . . Authchips . | . . . Time . | . . . Total Robot Build Rating . | . . . Part Schematics Acquired . | . . . Parts Built . | . . . Authchips . | . . . Time . | . . . Total Part Build Rating . | . . . Part Studies Acquired . | . . . Parts Repaired . | . . . Time . | . . . Parts Recycled . | . . . Recycled Matter . | . . . Retrieved Matter . | . . . Retrieved Components . | . . . Parts Scanalyzed . | . . . Part Schematics Acquired . | . . . Parts Damaged . | . . . Bothacking | -11 -10 -10 ------------ Run | Yrd Mat Min Used RIF Installer . | . . . Robots Hacked . | . . . Non-combat . | . . . Combat . | . . . Robot Hacks Applied . | . . . Relay Couplers Released . | . . . Fabnet Peak Effective % . | . . . Robots Rewired . | . . . Allies Hacked . | . . . Hacks Repelled . | . . . Allies | -11 -10 -10 -------- Run | Yrd Mat Min Total Allies . | . . . Largest Group . | . . . Highest-Rated Group . | . . . Highest-Rated Ally . | . . . Total Orders . | . . . Ally Attacks . | . . . Total Damage . | . . . Kills . | . . . Allies Corrupted . | . . . Allies Melted . | . . . Intel | -11 -10 -10 ------- Run | Yrd Mat Min Active Infowar (turns) 312 | 10 187 115 Seismic 312 | 10 187 115 Robot Analysis Total . | . . . Derelict Logs Recovered . | . . . Drone Launches . | . . . Drone Recoveries . | . . . Exploration | -11 -10 -10 ------------- Run | Yrd Mat Min Turns Passed 535 | 121 187 227 Spaces Moved 414 | 78 163 173 Core 3 | 3 . . Treads 7 | 5 . 2 Legs . | . . . Wheels 404 | 70 163 171 Hover . | . . . Flight . | . . . Fastest Speed 50 | 50 95 95 Average Speed 101 | 93 97 108 Slowest Speed 160 | 160 110 160 Overloaded Moves . | . . . Propulsion Burnouts . | . . . Robots Hopped . | . . . Potential Cave-ins . | . . . Cave-ins Triggered . | . . . Exploration Rate (%) 25 | 5 35 35 Regions Visited 2 Branch Regions 1 Pre-discovered Areas . | . . . Known Exits Taken . | . . . Unknown Exits Taken 2 | 1 1 . Scrap Searched 1 | . . 1 Spaces Dug . | . . . Terrain Destroyed 30 | . . 30 Melee . | . . . Projectile . | . . . AOE 30 | . . 30 Terrain Rammed . | . . . Walls Destroyed . | . . . Machines Disabled . | . . . Actions | -11 -10 -10 --------- Run | Yrd Mat Min Total 471 | 100 175 196 Wait 3 | . 1 2 Move 412 | 77 162 173 Hop . | . . . Pick Up 7 | 4 2 1 Fast Attach 7 | 7 . . Attach 3 | . . 3 Detach . | . . . Swap 3 | 1 1 1 Drop 1 | . 1 . Fire 35 | 11 8 16 Melee . | . . . Ram . | . . . Kick . | . . . Crush . | . . . Escape Stasis . | . . . Rewire . | . . . Trap . | . . . Miscellaneous . | . . . Route ------- -11/Scrapyard -10/Materials -10/Mines History --------- Turn | Location | Event 25 | -11/Scrapyard | Discovered new exit (range 16) 122 | -11/Scrapyard | Entered Materials 260 | -10/Materials | Discovered new exit (range 13) 304 | -10/Materials | Build established: Mutant 309 | -10/Materials | Entered Mines 310 | -10/Mines | Assembled infested the area 425 | -10/Mines | System corruption reached 10% 431 | -10/Mines | Core integrity fell below 50% 467 | -10/Mines | Lost 4 parts (1n1u2w) 490 | -10/Mines | A weapon hastily lodged in a ceiling crevice suddenly fell to the ground 531 | -10/Mines | Core integrity fell below 20% 536 | -10/Mines | Destroyed by D-53 Grenadier with Mini Grenade Launcher Last Messages --------------- 00490_ A Ripper has been hastily shoved under some rubble with a note attached: "Rip and tear!" 00492_ Acquired Ripper. 00514_ Extracted 10 matter. 00515_ Acquired 19 matter. 00516_ System corrupted: Matter fused (-10). 00524_ Acquired 22 matter. 00525_ D-53 Grenadier destroyed. 00527_ The unstable cave ceiling collapses. 00528_ Lgt. Ion Engine destroyed. 00528_ Wheel destroyed. 00528_ Destroyed Wheel. 00529_ The unstable cave ceiling collapses. 00529_ K-01 Serf collects debris. 00530_ K-01 Serf destroyed. 00531_ The unstable cave ceiling collapses. 00532_ System corrupted: Matter fused (-8). 00532_ Grenade Launcher destroyed. 00533_ The unstable cave ceiling collapses. Map ----- +----------------------------------------------------+ | ?????????????????????????????????????????????????? | | ????????????????????????????????????????????####?? | | ???????????????????????????????????????????## ##? | | ????????????????????????????????????????#??# ! #? | | ????????????????????????????????????????# ## #? | | ????????????????????????????????????????# !## | | ????????????????????????????????????????# # | | ????????????????????????????????????????##### # | | ?????????????????????????????????????##???## # | | ????????????????????????????????????## ### # | | ????????????????????????????????????# # | | ????????????????????????????????????# ## | | ????????????????????????????????????##! ### #? | | ?????????????????????????????????????####??## ##? | | ????????????????????????????????? ?????????# #?? | | ???????????????????????????????## ####??#### #?? | | ???????????????????????????????# ### #?? | | ???????????????????????????????# #?? | | ??????????????????????????###??# #?? | | ?????????????????????????? #???# """" #?? | | ?????????????"" ?????????# #???## """" ##?? | | ????????????? ???????# #????# """" ##?? | | ??????????? ????### ###??# #?? | | ?????????????? ?## #### ## #?? | | ??????????????????# # #??# ### ##?? | | ???????????????????# @ #???# #?###??? | | ???????????????????## ## #???# #??????? | | ??????????????????????# d #???# #??????? | | ??????????????????????# ##### #??????? | | ??????????????????##### ## #??????? | | ????????????####### ## ##!#####??????? | | ???????????## ! * ### ## #??????????? | | ???????????# #### ###?# ! #######????? | | ??????????## #??# #???# #### #????? | | ??????##### ##??# #???# #### """ #????? | | ???#### #???# #???# """ #????? | | ??## #??? #???####### """ #????? | | ?## ### ##???# #?????????# #????? | | ## ##?# #????# #?????????#######????? | | # ## ##?# !% ?# #????????????????????? | | # ??## ##??# #####? ?????????????????????? | | # #??## ##???# ##????? ?????????????????????? | | # #?## ##???# #?????? ?????????????????????? | | # ### #???# #?????? ?????????????????????? | | # #???# #?????? ?????????????????????? | | # ##???# #?????? ?????????????????????? | | # #????# #?????? ?????????????????????? | | # #????# ?????????????????????????????? | | # #????# ?????????????????????????????? | | ## #????# ?????????????????????????????? | +----------------------------------------------------+ Best States ------------- Heat Dissipation 25 Energy Generation 10 Energy Capacity 125 Matter Stores 300 Matter Capacity 300 Sight Range 16 Terrain Scan Density 10 Evasion (%) 44 Recoil Reduction 2 Item Schematics ----------------- None Robot Schematics ------------------ None Fabricated ------------ Nothing Repaired ---------- Nothing Studied --------- None Alien Tech Used ----------------- None Achievements -------------- None Challenges ------------ None Game ------ Seed DeflectorSkeletonMatrix Manual? 0 Play Time 00:05:16 Cumulative 166.5 hours Start 2026.08.20 @ 14:00:20 End 2026.08.20 @ 14:03:54 Sessions 1 Manual Loads 0 Difficulty Rogue Special Mode None Game No. 332 Rogue 332 Adventurer 0 Explorer 0 Win Type - Total 2 Types 2/0/0/0/0/0/0/0/0/0 Lore% 57 Gallery% 58 Achievement% 46 Wizard Run 0 Options --------- Layout 2 ASCII 0 Keyboard 1 Movement Arrows Keybinds 0 Fullscreen 1 Font 24/Smallcaps Map View 50x44 Zoom Use 0% Tactical HUD 1 Map Filters NONE Filters NONE Steam 1 RUN: c4689f4d-f412-4059-827f-c229d5250632